bitfinex/quotes_SOLUSD_20220129
["timestamp","ask_amount","ask_price","bid_price","bid_amount"]
[1643423833413,0.25,91.228,91.171,1.49976482]
[1643423833715,0.25,91.228,91.166,1.49976482]
[1643423833913,0.25,91.228,91.164,1.49976482]
[1643423834114,6.0,91.229,91.164,1.49976482]
[1643423834315,23.9641,91.238,91.17,1.49976482]
[1643423834513,23.9641,91.238,91.171,1.49976482]
[1643423834715,0.25,91.237,91.166,25.1431]
[1643423834916,23.9641,91.238,91.167,1.49976482]
[1643423835316,23.9641,91.238,91.17,1.49976482]
[1643423835715,23.9641,91.238,91.171,1.49976482]
[1643423835915,23.9641,91.238,91.168,0.25]
[1643423835916,6.0,91.228,91.172,0.25]
[1643423836114,6.0,91.228,91.168,0.25]
[1643423836315,23.9641,91.238,91.168,0.25]
[1643423836522,23.9641,91.238,91.17,1.49976482]
[1643423836915,23.9641,91.238,91.171,0.25]
[1643423837916,23.9641,91.238,91.169,0.25]
[1643423838119,6.0,91.228,91.169,0.25]
[1643423838317,0.25,91.227,91.167,0.25]
[1643423838618,6.0,91.228,91.167,0.25]
[1643423838916,0.25,91.227,91.167,0.25]
[1643423839116,7.20524942,91.239,91.167,108.75]
[1643423839317,32.222,91.27,91.177,108.5]
[1643423839618,22.8675,91.269,91.179,109.99976482]
[1643423839817,22.8675,91.269,91.184,1.49976482]
[1643423840317,33.58446622,91.268,91.185,32.90411587]
[1643423840719,33.58446622,91.268,91.195,6.0]
[1643423840917,0.25,91.267,91.196,0.25]
[1643423841119,16.453,91.26,91.196,0.25]
[1643423841317,0.25,91.259,91.196,0.25]
[1643423842318,0.25,91.259,91.186,0.25]
[1643423842520,0.25,91.267,91.186,0.25]
[1643423843323,6.0,91.258,91.186,0.25]
[1643423843719,0.25,91.257,91.186,0.25]
[1643423846022,0.25,91.257,91.195,6.0]
[1643423846427,16.455,91.25,91.196,0.25]
[1643423846622,6.0,91.248,91.196,0.25]
[1643423846823,0.25,91.247,91.196,0.25]
[1643423847024,16.455,91.25,91.196,0.25]
[1643423847324,1.98850446,91.249,91.189,45.17596343]
[1643423847524,1.98850446,91.249,91.199,6.0]
[1643423847724,1.73850446,91.249,91.2,0.25]
[1643423847925,23.0944,91.248,91.189,0.25]
[1643423848329,23.0944,91.248,91.17,1.49976482]
[1643423848527,16.456,91.24,91.176,0.25]
[1643423849026,0.25,91.239,91.176,0.25]
[1643423849628,0.25,91.239,91.172,24.5604]
[1643423849829,0.25,91.239,91.172,24.3104]
[1643423850028,0.25,91.239,91.171,43.05811111]
[1643423850730,28.45219266,91.229,91.171,43.05811111]
[1643423851129,0.25,91.228,91.171,43.05811111]
[1643423851331,0.25,91.228,91.172,0.25]
[1643423852331,0.25,91.228,91.158,0.25]
[1643423852933,24.634,91.228,91.158,0.25]
[1643423853536,24.634,91.228,91.156,1.74976482]
[1643423853734,24.634,91.228,91.156,0.25]
[1643423854133,24.634,91.228,91.147,1.49976482]
[1643423854434,24.634,91.228,91.142,6.0]
[1643423854435,24.634,91.228,91.148,43.6824245]
[1643423854834,24.634,91.228,91.148,42.18265968]
[1643423855052,24.634,91.228,91.155,1.49976482]
[1643423855254,24.634,91.228,91.158,6.0]
[1643423855454,24.634,91.228,91.156,0.25]
[1643423855655,24.634,91.228,91.156,1.74976482]
[1643423856056,24.634,91.228,91.162,1.49976482]
[1643423856255,24.634,91.228,91.163,36.69413446]
[1643423856455,24.634,91.228,91.163,36.44413446]
[1643423856656,24.634,91.228,91.164,0.25]
[1643423856855,24.634,91.228,91.164,1.74976482]
[1643423857657,24.634,91.228,91.165,23.2588]
[1643423857857,24.634,91.228,91.166,0.25]
[1643423859062,24.634,91.228,91.167,1.49976482]
[1643423859265,24.634,91.228,91.168,0.25]
[1643423859666,24.634,91.228,91.169,1.49976482]
[1643423859865,24.634,91.228,91.17,0.25]
[1643423861477,6.0,91.218,91.17,0.25]
[1643423861871,6.0,91.218,91.169,0.25]
[1643423862469,6.0,91.218,91.168,1.49976482]
[1643423862670,0.25,91.217,91.168,1.49976482]
[1643423863170,0.25,91.217,91.163,1.49976482]
[1643423863671,0.25,91.217,91.162,1.49976482]
[1643423863873,0.25,91.217,91.163,0.25]
[1643423864977,6.0,91.218,91.162,0.25]
[1643423865175,24.384,91.228,91.162,0.25]
[1643423865373,0.25,91.227,91.17,6.0]
[1643423865773,0.25,91.227,91.171,0.25]
[1643423866778,0.25,91.227,91.166,0.25]
[1643423867178,0.25,91.227,91.166,1.74976482]
[1643423867375,0.25,91.227,91.167,0.25]
[1643423867575,24.384,91.228,91.167,0.25]
[1643423867775,0.25,91.227,91.169,1.49976482]
[1643423867975,24.384,91.228,91.17,0.25]
[1643423868174,24.384,91.228,91.167,0.25]
[1643423868374,24.384,91.228,91.167,1.74976482]
[1643423868574,0.25,91.227,91.167,0.25]
[1643423869175,1.51784807,91.262,91.165,1.49976482]
[1643423869176,15.77,91.25,91.166,0.25]
[1643423869376,0.25,91.249,91.177,1.49976482]
[1643423869576,0.25,91.249,91.187,6.0]
[1643423869776,0.25,91.249,91.188,0.25]
[1643423869975,0.25,91.249,91.19,6.0]
[1643423870175,31.91859188,91.248,91.192,33.95346784]
[1643423870377,31.91859188,91.248,91.193,0.25]
[1643423872777,0.25,91.247,91.192,33.95346784]
[1643423872977,0.25,91.247,91.186,1.49976482]
[1643423873178,23.9445,91.247,91.184,1.49976482]
[1643423873378,23.9445,91.247,91.185,0.25]
[1643423873578,23.9445,91.247,91.184,1.49976482]
[1643423873778,23.9445,91.247,91.181,1.49976482]
[1643423873980,15.77,91.24,91.185,34.13154635]
[1643423874382,0.25,91.239,91.186,0.25]
[1643423874680,3.4043788,91.229,91.186,0.25]
[1643423874880,0.25,91.228,91.186,0.25]
[1643423875981,0.25,91.228,91.174,1.74976482]
[1643423876480,0.25,91.228,91.174,0.25]
[1643423876683,0.25,91.228,91.174,40.58851789]
[1643423879387,0.25,91.228,91.174,40.33851789]
[1643423879583,0.25,91.228,91.175,0.25]
[1643423879784,0.25,91.228,91.174,40.33851789]
[1643423879984,0.25,91.228,91.175,0.25]
[1643423880784,0.25,91.228,91.17,1.49976482]
[1643423880986,0.25,91.228,91.165,1.49976482]
[1643423881206,6.0,91.219,91.163,1.49976482]
[1643423881405,0.25,91.218,91.164,0.25]
[1643423882706,0.25,91.218,91.161,0.25]
[1643423882905,0.25,91.219,91.161,0.25]
[1643423884707,6.0,91.21,91.161,0.25]
[1643423884908,0.25,91.209,91.161,0.25]
[1643423888810,6.0,91.21,91.161,0.25]
[1643423891515,46.6123,91.228,91.161,110.24976482]
[1643423891715,46.6123,91.228,91.165,1.49976482]
[1643423891915,0.25,91.227,91.166,1.74976482]
[1643423892117,46.6123,91.228,91.166,1.74976482]
[1643423892314,46.6123,91.228,91.166,1.49976482]
[1643423892516,46.6123,91.228,91.07,203.12339797]
[1643423892517,46.6123,91.228,91.153,1.49976482]
[1643423892718,18.078567,91.227,91.151,1.49976482]
[1643423893016,2.95669142,91.227,91.148,1.49976482]
[1643423893216,45.56360228,91.226,91.144,1.49976482]
[1643423893416,45.56360228,91.226,91.143,1.49976482]
[1643423893417,0.25,91.225,91.143,1.49976482]
[1643423893717,15.77,91.21,91.142,1.49976482]
[1643423893917,15.77,91.21,91.134,0.25]
[1643423893918,16.463,91.2,91.143,0.25]
[1643423894218,16.463,91.2,91.134,0.25]
[1643423894219,16.463,91.2,91.137,1.49976482]
[1643423894418,0.25,91.199,91.139,0.25]
[1643423895018,6.0,91.19,91.139,0.25]
[1643423895216,5.27323939,91.189,91.139,0.25]
[1643423895415,5.52323939,91.189,91.134,0.25]
[1643423895818,6.0,91.19,91.134,0.25]
[1643423896017,6.0,91.19,91.143,6.0]
[1643423896216,6.0,91.19,91.138,1.49976482]
[1643423896419,6.0,91.19,91.134,0.25]
[1643423896420,6.0,91.19,91.139,0.25]
[1643423896618,6.0,91.19,91.134,1.74976482]
[1643423896817,34.79236129,91.189,91.135,37.05360415]
[1643423897221,34.79236129,91.189,91.136,0.25]
[1643423897418,34.79236129,91.189,91.134,0.25]
[1643423898319,34.79236129,91.189,91.134,37.40061591]
[1643423900322,34.79236129,91.189,91.135,1.49976482]
[1643423900621,34.79236129,91.189,91.134,37.40061591]
[1643423900622,34.79236129,91.189,91.134,38.90038073]
[1643423900825,34.79236129,91.189,91.135,1.49976482]
[1643423901324,0.25,91.188,91.135,1.49976482]
[1643423901522,0.25,91.188,91.12,1.49976482]
[1643423901725,0.25,91.188,91.119,1.49976482]
[1643423902123,0.25,91.188,91.118,1.49976482]
[1643423902326,0.25,91.188,91.122,63.04859397]
[1643423902725,59.79086129,91.189,91.123,0.25]
[1643423903225,59.79086129,91.189,91.127,1.49976482]
[1643423903425,59.79086129,91.189,91.128,0.25]
[1643423903632,59.79086129,91.189,91.128,1.49976482]
[1643423903825,59.79086129,91.189,91.129,0.25]
[1643423904626,59.79086129,91.189,91.129,1.74976482]
[1643423905027,6.0,91.179,91.129,1.74976482]
[1643423905432,6.0,91.179,91.129,0.25]
[1643423905627,0.25,91.178,91.127,1.49976482]
[1643423905828,0.25,91.178,91.129,0.25]
[1643423906029,0.25,91.178,91.122,63.04859397]
[1643423906230,0.25,91.178,91.122,61.54882915]
[1643423907461,6.0,91.179,91.123,0.25]
[1643423907756,6.0,91.179,91.132,6.0]
[1643423907957,6.0,91.179,91.131,1.49976482]
[1643423908156,6.0,91.179,91.128,0.25]
[1643423908557,34.79236129,91.189,91.128,1.74976482]
[1643423908756,34.79236129,91.189,91.131,1.49976482]
[1643423909157,34.79236129,91.189,91.132,1.49976482]
[1643423909359,0.25,91.188,91.133,0.25]
[1643423909558,6.0,91.179,91.128,0.25]
[1643423909758,6.0,91.179,91.132,0.25]
[1643423909962,0.25,91.178,91.128,0.25]
[1643423910760,0.25,91.178,91.122,61.54882915]
[1643423910761,0.25,91.178,91.124,1.74976482]
[1643423911060,0.25,91.178,91.124,0.25]
[1643423911262,0.25,91.178,91.123,0.25]
[1643423911663,0.25,91.178,91.123,1.74976482]
[1643423911861,6.0,91.179,91.123,1.74976482]
[1643423912062,6.0,91.179,91.127,1.49976482]
[1643423912361,6.0,91.179,91.128,0.25]
[1643423913064,24.209,91.188,91.128,0.25]
[1643423913262,0.25,91.187,91.128,1.74976482]
[1643423913464,0.25,91.187,91.128,1.49976482]
[1643423913664,0.25,91.187,91.129,0.25]
[1643423913864,24.209,91.188,91.128,1.49976482]
[1643423914265,0.25,91.187,91.129,1.74976482]
[1643423914463,0.25,91.187,91.129,0.25]
[1643423914664,6.0,91.178,91.129,0.25]
[1643423915266,0.25,91.177,91.128,1.49976482]
[1643423915466,0.25,91.177,91.122,61.54882915]
[1643423915467,0.25,91.177,91.125,1.49976482]
[1643423916066,0.25,91.177,91.122,61.54882915]
[1643423916067,6.0,91.178,91.123,1.49976482]
[1643423916467,6.0,91.178,91.13,1.49976482]
[1643423916668,6.0,91.178,91.131,1.49976482]
[1643423916868,6.0,91.178,91.132,0.25]
[1643423918070,6.0,91.178,91.128,1.49976482]
[1643423918272,6.0,91.178,91.129,0.25]
[1643423918471,6.0,91.178,91.129,1.74976482]
[1643423918871,6.0,91.178,91.13,1.49976482]
[1643423919471,6.0,91.178,91.131,1.74976482]
[1643423919670,6.0,91.178,91.129,1.74976482]
[1643423920572,6.0,91.178,91.132,1.49976482]
[1643423920775,6.0,91.178,91.133,0.25]
[1643423921075,6.0,91.178,91.132,1.49976482]
[1643423921273,6.0,91.178,91.122,61.54882915]
[1643423921274,6.0,91.178,91.129,1.49976482]
[1643423921576,6.0,91.178,91.13,1.49976482]
[1643423921975,6.0,91.178,91.133,1.49976482]
[1643423922375,6.0,91.178,91.134,0.25]
[1643423922577,6.0,91.178,91.137,1.49976482]
[1643423922776,6.0,91.178,91.138,0.25]
[1643423923777,6.0,91.178,91.138,1.74976482]
[1643423923975,6.0,91.178,91.137,1.49976482]
[1643423924376,6.0,91.178,91.138,0.25]
[1643423925187,6.0,91.178,91.137,1.49976482]
[1643423925480,0.25,91.177,91.134,1.49976482]
[1643423925677,0.25,91.177,91.132,1.49976482]
[1643423925876,0.25,91.177,91.127,1.49976482]
[1643423926277,0.25,91.177,91.128,37.14787675]
[1643423926476,0.25,91.177,91.128,35.64811193]
[1643423928081,0.25,91.177,91.126,1.49976482]
[1643423928681,0.25,91.177,91.127,0.25]
[1643423929280,0.25,91.177,91.126,1.49976482]
[1643423929480,22.8726,91.177,91.122,1.49976482]
[1643423929680,67.0,91.176,91.081,21.06029047]
[1643423929879,22.83614499,91.177,91.081,21.06029047]
[1643423929880,22.83614499,91.177,91.106,6.0]
[1643423930080,22.83614499,91.177,91.091,6.0]
[1643423930381,22.83614499,91.177,91.092,36.98378267]
[1643423930582,6.0,91.167,91.102,6.0]
[1643423930782,6.0,91.167,91.103,0.25]
[1643423930980,24.7405,91.166,91.093,23.9723]
[1643423931381,0.25,91.165,91.093,23.9723]
[1643423931780,0.25,91.165,91.094,41.26125437]
[1643423932384,24.7405,91.166,91.095,0.25]
[1643423933783,0.25,91.165,91.095,0.25]
[1643423937195,0.53060939,91.155,91.095,0.25]
[1643423937798,0.78060939,91.155,91.095,0.25]
[1643423939701,23.9024,91.154,91.072,6.0]
[1643423939902,0.25,91.153,91.073,0.25]
[1643423940102,0.25,91.153,91.073,19.16949881]
[1643423940403,0.53060939,91.155,91.074,21.80714075]
[1643423940704,0.53060939,91.155,91.084,6.0]
[1643423940901,6.53060939,91.155,91.085,0.25]
[1643423941102,6.53060939,91.155,91.085,6.25]
[1643423941324,0.25,91.154,91.085,6.25]
[1643423942425,0.25,91.154,91.075,43.35025988]
[1643423942825,0.25,91.154,91.076,2.88764194]
[1643423943022,0.25,91.154,91.076,21.81221047]
[1643423943425,0.25,91.154,91.077,21.81221047]
[1643423943827,0.25,91.154,91.078,0.25]
[1643423944024,0.25,91.154,91.087,6.0]
[1643423944425,0.25,91.154,91.088,0.25]
[1643423944624,0.25,91.154,91.089,6.0]
[1643423944824,0.53060939,91.155,91.09,0.25]
[1643423945028,0.53060939,91.155,91.088,3.13764194]
[1643423945826,0.53060939,91.155,91.088,0.25]
[1643423946226,0.53060939,91.155,91.075,43.35025988]
[1643423946227,0.53060939,91.155,91.076,0.25]
[1643423946429,0.53060939,91.155,91.088,2.88764194]
[1643423946629,15.77,91.15,91.088,2.88764194]
[1643423946829,15.77,91.15,91.077,18.91865671]
[1643423946830,23.4268,91.149,91.077,18.91865671]
[1643423947031,23.4268,91.149,91.036,1.1159139]
[1643423947629,23.4268,91.149,91.037,39.12073145]
[1643423947830,23.4268,91.149,91.038,46.8919]
[1643423948029,16.475,91.14,91.042,2.88764194]
[1643423948231,15.77,91.13,91.042,2.88764194]
[1643423948431,22.7888,91.129,91.052,6.0]
[1643423948630,23.0388,91.129,91.053,23.9093]
[1643423948830,23.0388,91.129,91.053,24.1593]
[1643423949330,16.478,91.12,91.052,6.0]
[1643423949531,15.77,91.11,91.052,6.0]
[1643423949732,24.207,91.109,91.048,6.0]
[1643423949933,24.207,91.109,90.97,54.932]
[1643423949934,24.457,91.109,90.97,54.932]
[1643423950133,24.457,91.109,90.95,197.08]
[1643423950134,24.457,91.109,90.987,23.2264]
[1643423950334,2.95669142,91.108,90.987,23.2264]
[1643423950736,0.25,91.107,90.987,23.2264]
[1643423950935,6.45069399,91.107,91.07,0.00339797]
[1643423951136,16.482,91.1,91.07,0.00339797]
[1643423951335,15.77,91.09,91.07,0.00339797]
[1643423951542,6.0,91.08,91.07,0.00339797]
[1643423951736,21.77,91.08,91.07,0.00339797]
[1643423951935,0.25,91.079,91.07,0.00339797]
[1643423953739,18.80210003,91.08,91.07,0.00339797]
[1643423953937,15.77,91.08,91.07,3.03549797]
[1643423954239,0.25,91.079,91.07,3.03549797]
[1643423954437,0.25,91.079,91.015,23.7838]
[1643423954637,26.52623333,91.079,91.015,23.7838]
[1643423955338,6.0,91.069,90.98,16.483]
[1643423955736,0.25,91.068,90.98,16.483]
[1643423956137,0.25,91.068,91.007,39.71641637]
[1643423956536,0.25,91.068,91.021,36.8674988]
[1643423956741,26.27623333,91.079,91.021,36.8674988]
[1643423956939,26.27623333,91.079,91.037,0.25]
[1643423957137,0.25,91.078,91.037,0.25]
[1643423958040,6.0,91.069,91.037,0.25]
[1643423958240,0.25,91.078,91.037,0.25]
[1643423959644,0.25,91.078,91.046,6.0]
[1643423960170,6.0,91.069,91.036,1.1159139]
[1643423960373,0.25,91.068,91.036,1.1159139]
[1643423964281,0.25,91.078,91.036,1.1159139]
[1643423971587,6.0,91.069,91.036,1.1159139]
[1643423971787,0.25,91.068,91.036,1.1159139]
[1643423971993,0.25,91.068,91.037,0.25580232]
[1643423972787,0.25,91.069,91.037,0.25580232]
[1643423978795,15.77,91.07,91.037,0.25580232]
[1643423978998,24.3786,91.079,91.037,0.25580232]
[1643423979294,15.77,91.12,91.046,6.0]
[1643423979495,24.746,91.117,91.046,6.0]
[1643423979697,24.746,91.117,91.037,0.25580232]
[1643423979895,27.50203318,91.116,91.037,0.25580232]
[1643423980095,27.50203318,91.116,91.046,6.0]
[1643423980296,27.50203318,91.116,91.047,0.25580232]
[1643423980696,0.25,91.115,91.047,0.25580232]
[1643423980899,15.77,91.11,91.048,6.0]
[1643423981098,15.77,91.11,91.047,0.25580232]
[1643423981399,0.25,91.109,91.047,0.25580232]
[1643423982998,0.25,91.109,91.049,6.0]
[1643423983199,15.77,91.15,91.05,0.25]
[1643423983401,23.6983,91.144,91.057,6.0]
[1643423983604,23.6983,91.144,91.06,6.0]
[1643423983803,23.6983,91.144,91.061,0.25]
[1643423984001,23.6983,91.144,91.061,114.75]
[1643423984202,25.31757735,91.143,91.062,157.43898612]
[1643423984402,25.31757735,91.143,91.071,6.0]
[1643423984602,25.31757735,91.143,91.063,0.25]
[1643423984603,25.31757735,91.143,91.072,6.0]
[1643423984807,25.31757735,91.143,91.073,0.25]
[1643423985003,25.31757735,91.143,91.073,6.25]
[1643423985301,25.31757735,91.143,91.073,3.12528429]
[1643423985502,25.31757735,91.143,91.084,33.84882546]
[1643423985902,25.31757735,91.143,91.085,3.12528429]
[1643423986330,15.77,91.19,91.095,6.0]
[1643423986531,6.0,91.169,91.096,6.0]
[1643423986730,6.0,91.169,91.096,9.11951706]
[1643423986930,6.0,91.169,91.096,6.25]
[1643423987135,6.0,91.169,91.097,2.86951706]
[1643423987335,30.29038525,91.168,91.098,34.56020501]
[1643423987529,30.29038525,91.168,91.108,6.0]
[1643423987930,30.29038525,91.168,91.109,3.11951706]
[1643423988332,30.29038525,91.168,91.11,2.86951706]
[1643423988737,30.29038525,91.168,91.111,0.25]
[1643423989137,30.29038525,91.168,91.112,2.86951706]
[1643423989334,30.29038525,91.168,91.113,45.47680352]
[1643423989534,0.25,91.167,91.113,45.22680352]
[1643423989738,15.77,91.16,91.086,0.25580232]
[1643423989938,197.08,91.15,91.086,0.25580232]
[1643423990135,197.08,91.15,91.036,1.1159139]
[1643423990136,212.85,91.14,91.036,1.1159139]
[1643423990335,15.77,91.13,91.036,1.1159139]
[1643423990735,2.2375704,91.129,91.037,45.98444048]
[1643423990935,17.38651137,91.129,91.037,45.98444048]
[1643423991137,5.19426182,91.129,91.037,45.98444048]
[1643423991338,19.49555496,91.128,91.037,45.98444048]
[1643423991736,19.76216924,91.127,91.037,45.98444048]
[1643423991937,19.51216924,91.127,91.037,45.98444048]
[1643423992138,16.482,91.12,91.037,45.98444048]
[1643423992337,15.77,91.11,91.036,1.1159139]
[1643423992738,0.25,91.109,91.036,1.1159139]
[1643423993337,30.54038525,91.109,91.037,35.53127633]
[1643423993938,30.54038525,91.109,91.047,6.0]
[1643423994139,30.54038525,91.109,91.037,35.53127633]
[1643423995340,6.0,91.099,91.036,1.1159139]
[1643423995741,0.25,91.098,91.036,1.1159139]
[1643423998842,6.0,91.099,91.036,1.1159139]
[1643423999043,6.0,91.099,91.037,45.56497975]
[1643423999445,32.252,91.1,91.037,45.56497975]
[1643423999644,15.77,91.1,91.037,45.56497975]
[1643423999845,30.29038525,91.109,91.037,45.56497975]
[1643424000046,30.29038525,91.109,91.047,6.0]
[1643424000248,30.29038525,91.109,91.037,45.56497975]
[1643424000448,30.29038525,91.109,91.047,6.0]
[1643424000848,47.1901,91.159,91.048,0.25]
[1643424001148,47.1901,91.159,91.048,47.7184]
[1643424001549,47.1901,91.159,91.058,6.0]
[1643424001752,26.78740236,91.158,91.059,34.6070646]
[1643424002153,26.78740236,91.158,91.069,6.0]
[1643424002350,19.47833274,91.157,90.961,65.23]
[1643424002550,19.47833274,91.157,91.011,48.5193]
[1643424002754,19.24494702,91.156,91.011,48.5193]
[1643424002950,16.478,91.12,91.02,16.476]
[1643424003349,5.74055329,91.119,91.037,34.51642595]
[1643424003549,5.74055329,91.119,91.011,48.5193]
[1643424003751,5.74055329,91.119,91.037,0.25]
[1643424003951,2.95669142,91.118,91.011,48.5193]
[1643424004353,0.25,91.117,91.011,48.5193]
[1643424004551,0.25,91.117,91.033,39.00720958]
[1643424004975,16.48,91.11,91.033,39.00720958]
[1643424005180,32.25,91.11,91.037,0.25]
[1643424005384,0.25,91.109,91.037,0.25]
[1643424005777,3.20669142,91.109,91.037,0.25]
[1643424005978,0.25,91.109,91.037,0.25]
[1643424007078,2.95669142,91.108,91.011,48.5193]
[1643424007280,0.25,91.107,91.011,48.5193]
[1643424007679,16.482,91.1,91.011,48.5193]
[1643424007881,0.25,91.099,91.011,48.5193]
[1643424008078,26.97537107,91.099,91.024,33.83291141]
[1643424012384,16.483,91.09,91.024,33.83291141]
[1643424012783,0.25,91.089,91.024,33.83291141]
[1643424014386,0.25,91.089,91.037,0.25]
[1643424014585,26.72537107,91.099,91.037,0.25]
[1643424015794,0.25,91.098,91.037,0.25]
[1643424022098,0.25,91.098,91.024,33.83291141]
[1643424022899,0.25,91.098,91.037,0.25]
[1643424024401,0.25,91.098,91.025,0.25]
[1643424029107,16.478,91.12,91.025,108.75]
[1643424029307,22.8402,91.164,91.026,2.86586958]
[1643424029508,15.77,91.16,91.031,108.5]
[1643424029707,15.77,91.16,91.032,3.05142826]
[1643424029906,15.77,91.16,91.034,108.5]
[1643424030107,24.69799371,91.159,91.034,108.5]
[1643424030307,0.25,91.158,91.035,0.25]
[1643424030607,16.475,91.14,91.04,16.473]
[1643424030808,31.61556194,91.139,91.041,38.96457094]
[1643424032028,31.61556194,91.139,91.042,22.5985]
[1643424032431,31.61556194,91.139,91.043,0.25]
[1643424038840,7.82996194,91.139,91.05,15.77]
[1643424039239,7.82996194,91.139,91.051,27.62796958]
[1643424039641,7.82996194,91.139,91.052,2.86586958]
[1643424039841,7.82996194,91.139,91.053,0.25]
[1643424040446,7.82996194,91.139,91.054,2.86586958]
[1643424040644,7.82996194,91.139,91.055,37.2373521]
[1643424040846,7.82996194,91.139,91.055,37.4873521]
[1643424041450,7.82996194,91.139,91.056,2.85926081]
[1643424041846,7.82996194,91.139,91.057,0.25]
[1643424042246,7.82996194,91.139,91.058,2.85926081]
[1643424042948,7.82996194,91.139,91.059,0.25]
[1643424043351,7.82996194,91.139,91.06,2.85926081]
[1643424043549,7.82996194,91.139,91.059,0.25]
[1643424044049,7.82996194,91.139,91.056,0.25]
[1643424044252,24.3171,91.138,91.056,0.25]
[1643424044653,0.25,91.137,91.056,0.25]
[1643424048756,16.476,91.13,91.056,0.25]
[1643424049156,0.25,91.129,91.056,0.25]
[1643424053680,0.25,91.129,91.052,0.25]
[1643424054486,0.25,91.129,91.052,40.30061117]
[1643424056885,0.25,91.129,91.055,1.52535255]
[1643424057089,0.25,91.129,91.056,1.52535255]
[1643424057288,0.25,91.129,91.057,0.25]
[1643424057487,0.25,91.129,91.055,1.52535255]
[1643424057684,0.25,91.129,91.056,0.25]
[1643424058489,0.25,91.129,91.056,1.77535255]
[1643424058688,0.25,91.129,91.056,0.25]
[1643424059289,0.25,91.129,91.055,0.25]
[1643424059888,0.25,91.129,91.055,1.77535255]
[1643424060191,0.25,91.129,91.055,0.25]
[1643424060589,0.25,91.129,91.053,1.77535255]
[1643424060991,0.25,91.129,91.054,1.52535255]
[1643424061391,0.25,91.129,91.053,0.25]
[1643424061392,0.25,91.129,91.055,0.25]
[1643424062192,0.25,91.129,91.055,1.77535255]
[1643424062990,16.476,91.13,91.055,1.77535255]
[1643424063190,24.3171,91.138,91.06,1.52535255]
[1643424063390,24.3171,91.138,91.061,0.25]
[1643424063591,24.3171,91.138,91.061,1.77535255]
[1643424064191,1.51559378,91.142,91.061,12.14535255]
[1643424064392,1.51559378,91.142,91.062,2.85352946]
[1643424064595,1.51559378,91.146,91.07,15.77]
[1643424064794,1.51559378,91.155,91.074,1.52535255]
[1643424064994,1.51559378,91.158,91.077,1.52535255]
[1643424065192,1.51559378,91.167,91.086,1.52535255]
[1643424065392,1.51559378,91.167,91.087,0.25]
[1643424065592,1.51559378,91.173,91.092,1.52535255]
[1643424065792,39.95904188,91.224,91.096,37.92846046]
[1643424065793,1.51559378,91.176,91.096,37.92846046]
[1643424065992,1.51559378,91.183,91.101,1.52535255]
[1643424066192,1.51559378,91.185,91.104,1.52535255]
[1643424066492,1.51559378,91.185,91.105,3.10352946]
[1643424066693,1.51559378,91.183,91.105,3.10352946]
[1643424066891,1.51559378,91.186,91.106,2.85352946]
[1643424067092,1.51559378,91.186,91.107,24.7962]
[1643424067293,1.51559378,91.191,91.117,108.5]
[1643424067493,1.51559378,91.191,91.118,23.3738]
[1643424067692,1.51559378,91.19,91.12,6.0]
[1643424067992,27.71405365,91.189,91.129,41.99358389]
[1643424068193,27.71405365,91.189,91.094,1.52535255]